Cogmind - Beta 13 @@@ ROGUE MODE // 2024.04.16 @ 19:45:12 Player: xSquared Result: Self-destructed Performance ------------- Evolutions (1) 500 Regions Visited (2) 400 Robots Destroyed (19) 95 Value Destroyed (419) 419 Prototype IDs (0) 0 Alien Tech Used (0) 0 Bonus (0) 0 TOTAL SCORE: 1414 Bonus ------- None Cogmind --------- Core Integrity 351/400 Matter 258/300 Energy 125/125 System Corruption 0% Temperature Cool (0) Movement Core (150) Ox2 Location -9/Materials Parts ------- > --- POWER (1) -------- Light Ion Engine > --- PROPULSION (3) --- (None) > --- UTILITY (3) ------ Sensor Array Signal Interpreter Hacking Suite > --- WEAPON (2) ------- Medium Laser Light Assault Rifle > --- INVENTORY (5) ---- Ion Engine Sensor Array Power Shielding Assault Rifle Mini Grenade Launcher Peak State ------------ > --- POWER ------------ Light Ion Engine > --- PROPULSION ------- Flight Unit Flight Unit > --- UTILITY ---------- Sensor Array Signal Interpreter Hacking Suite > --- WEAPON ----------- Assault Rifle Mini Grenade Launcher > --- INVENTORY -------- Ion Engine Sensor Array Power Shielding Medium Laser Light Assault Rifle [Rating: 11] Favorites ----------- Power Light Ion Engine Engine Light Ion Engine Propulsion Flight Unit Wheel Wheel Flight Unit Flight Unit Utility Sensor Array Device Sensor Array Storage Small Storage Unit Processor Signal Interpreter Hackware Hacking Suite Weapon Assault Rifle Energy Gun Medium Laser Ballistic Gun Assault Rifle Launcher Mini Grenade Launcher Build | -11 -10 -9 ------- Run | Yrd Mat Mat Slots Evolved 2 | . . 2 Power . | . . . Propulsion 1 | . . 1 Utility 1 | . . 1 Weapon . | . . . Parts Attached 23 | 5 12 6 Power 3 | 1 2 . Engine 3 | 1 2 . Core . | . . . Reactor . | . . . Propulsion 4 | 2 2 . Treads . | . . . Leg . | . . . Wheel 2 | 2 . . Hover . | . . . Flight 2 | . 2 . Utility 6 | . 5 1 Device 3 | . 3 . Storage 1 | . 1 . Processor 1 | . . 1 Hackware 1 | . 1 . Protection . | . . . Artifact . | . . . Weapon 10 | 2 3 5 Energy Gun 2 | . 1 1 Energy Cannon . | . . . Ballistic Gun 6 | 2 2 2 Ballistic Cannon . | . . . Launcher 2 | . . 2 Special Weapon . | . . . Impact Weapon . | . . . Slashing Weapon . | . . . Piercing Weapon . | . . . Special Melee Weapon . | . . . Unidentified Prototypes . | . . . Parts Lost 9 | . 7 2 Power 2 | . 2 . Propulsion 4 | . 2 2 Utility 1 | . 1 . Weapon 2 | . 2 . Highest Loss Streak 6 | . 6 2 To Critical Strikes . | . . . Average Slot Usage (%) 83 | . 85 78 Engine 11 | . 11 11 Wheel 11 | . 15 . Flight 9 | . 8 12 Device 11 | . 11 11 Storage 7 | . 10 . Processor 2 | . . 11 Hackware 3 | . . 11 Energy Gun 1 | . . 3 Ballistic Gun 23 | . 26 16 Naked Turns . | . . . Heaviest Build 15 | 7 15 7 Greatest Support 26 | 26 26 8 Greatest Overweight (x) 2 | 2 2 2 Average Overweight (x) . | . . . Largest Inventory Capacity 8 | 5 8 5 Average Capacity 6 | 5 7 5 Most Carried 5 | 3 5 5 Average Carried 4 | 2 3 4 Final Capacity 5 | 5 5 5 Final Carried 5 | 3 5 5 Class Distribution -------------------- 64% | Mutant 35% | Scavenger-Mutant Dominant Class ---------------- Mutant | -10/Materials Scavenger-Mutant | -9/Materials Resources | -11 -10 -9 ----------- Run | Yrd Mat Mat Matter Collected 548 | 241 214 93 Remotely . | . . . Salvage Created 496 | . 275 221 Parts 30 | . 19 11 Haulers Intercepted . | . . . Recyclers Shooed 1 | . . 1 Parts Field Recycled . | . . . Retrieved Matter . | . . . Parts Self-Destructed . | . . . Prevented . | . . . Kills | -11 -10 -9 ------- Run | Yrd Mat Mat Combat Hostiles Destroyed 17 | . 7 10 Guns 9 | . 7 2 AOE 8 | . . 8 Classes Destroyed 4 | . 3 1 Recycler 1 | . . 1 Operator 1 | . 1 . Swarmer 10 | . 3 7 Grunt 7 | . 4 3 Best Kill Streak 8 | . 3 8 Combat Bots Only 7 | . 3 7 Max Kills in Single Turn 3 | . 1 3 Gunslinging . | . . . Exploded 3 | . . 3 Melee . | . . . Uniques/NPCs Destroyed . | . . . Combat | -11 -10 -9 -------- Run | Yrd Mat Mat Hostile Shots Fired 56 | . 41 15 Missed 13 | . 8 5 Damage Taken 719 | . 596 123 Core 233 | . 184 49 Absorbed by Shields . | . . . Core Remaining (%) 63 | 100 26 . Volleys Fired 40 | . 24 16 Largest 2 | . 2 2 Hottest 70 | . 60 70 Shots Fired 74 | . 43 31 Gun 69 | . 43 26 Cannon . | . . . Launcher 5 | . . 5 Special . | . . . Kinetic 59 | . 38 21 Thermal 5 | . . 5 Explosive 5 | . . 5 Electromagnetic 5 | . 5 . Robot Hit Streak 10 | . 10 5 Robot Miss Streak 4 | . 4 3 Penetration Max . | . . . Secondary Targets 3 | . 3 . Max Gunslinging Chain 1 | . 1 . Shots Hit Robots 42 | . 28 14 Core Hits 31 | . 14 17 Critical Kills . | . . . Critical Parts Destroyed . | . . . Critical Strikes 1 | . 1 . Corrupt 1 | . 1 . Melee Attacks . | . . . Impact . | . . . Slashing . | . . . Piercing . | . . . Sneak Attacks . | . . . Combat Hostiles . | . . . Follow-up Attacks . | . . . Damage Inflicted 1065 | . 364 701 Guns 503 | . 364 139 Cannons . | . . . Explosions 562 | . . 562 Melee . | . . . Ramming . | . . . Kinetic 437 | . 323 114 Thermal 25 | . . 25 Explosive 562 | . . 562 Electromagnetic 41 | . 41 . Impact . | . . . Slashing . | . . . Piercing . | . . . Highest Corruption . | . . . Average Corruption . | . . . Corruption Purged . | . . . Corruption Blocked . | . . . Overload Shots . | . . . Overflow Damage 52 | . . 52 Projectiles . | . . . Explosions 52 | . . 52 Melee . | . . . Knockbacks . | . . . Impact . | . . . Kinetic . | . . . Secondary . | . . . Self-Inflicted Damage 31 | . . 31 Shots 1 | . . 1 Rammed . | . . . Targets Rammed . | . . . Kicked . | . . . Crushed . | . . . Highest Temperature 50 | . 20 50 Average Temperature 9 | . 6 13 Received Heat Transfer 258 | . 243 15 Siege Activations . | . . . Robots Corrupted . | . . . Combat Hostiles . | . . . Parts Fried . | . . . Impact Corruptions . | . . . Robots Melted . | . . . Combat Hostiles . | . . . Parts Melted . | . . . Heat Transferred 74 | . . 74 Parts Sabotaged . | . . . Parts Stolen . | . . . Parts Stripped . | . . . Power Chain Reactions . | . . . Alert | -11 -10 -9 ------- Run | Yrd Mat Mat Peak Influence 381 | . 264 381 Initial 28 | . . 28 Average 129 | . 108 230 Maximum Alert Level 1 | . 1 1 Low Security (%) 69 | 100 72 51 Level 1 30 | . 27 48 Level 2 . | . . . Level 3 . | . . . Level 4 . | . . . Level 5 . | . . . High Security . | . . . Max Security . | . . . Squads Dispatched 5 | . 1 4 Investigation 2 | . 1 1 Extermination . | . . . Reinforcement 3 | . . 3 Assault . | . . . Garrison . | . . . Intercept . | . . . Searches Triggered . | . . . Construction Impeded 1 | . . 1 Haulers Reinforced . | . . . Active Scanning Responses . | . . . Cargo Convoy Interrupts . | . . . Stealth | -11 -10 -9 --------- Run | Yrd Mat Mat Distress Signals 4 | . 2 2 Communications Jammed . | . . . Distress Signals . | . . . Times Spotted 36 | . 14 22 Peak Tracking Total 9 | . 6 9 Tactical Retreats 4 | . 2 2 Traps | -11 -10 -9 ------- Run | Yrd Mat Mat Traps Triggered 2 | . 2 . Indirectly . | . . . Trap Hack Attempts . | . . . Triggered . | . . . Disarmed . | . . . Reprogrammed . | . . . Reused . | . . . Traps Extracted . | . . . Installed . | . . . Triggered . | . . . Machines | -11 -10 -9 ---------- Run | Yrd Mat Mat Machines Disabled 2 | . . 2 Max in Single Turn 1 | . . 1 Machines Repaired . | . . . Machines Dismantled . | . . . Machines Sabotaged . | . . . Overloaded Fab Kills . | . . . Hacking | -11 -10 -9 --------- Run | Yrd Mat Mat Machines Accessed 7 | . 6 1 Terminals 6 | . 5 1 Fabricators . | . . . Repair Stations . | . . . Recycling Units 1 | . 1 . Scanalyzers . | . . . Garrison Access . | . . . Total Hacks 35 | . 32 3 Successful 21 | . 21 . Failed 14 | . 11 3 Catastrophic 2 | . 1 1 Database Lockouts . | . . . Manual 6 | . 6 . Terminals 32 | . 29 3 Fabricators . | . . . Repair Stations . | . . . Recycling Units 3 | . 3 . Scanalyzers . | . . . Garrison Access . | . . . Terminal Hacks 15 | . 15 . Level Access Points 1 | . 1 . Recycling Unit Index 1 | . 1 . Alert Level 11 | . 11 . Locate Traps 1 | . 1 . Zone Layout 1 | . 1 . Fabricator Hacks . | . . . Repair Station Hacks . | . . . Recycling Unit Hacks 2 | . 2 . Report Inventory 1 | . 1 . Retrieve Components 1 | . 1 . Scanalyzer . | . . . Garrison Access Hacks . | . . . Unauthorized Hacks 4 | . 4 . Terminals 4 | . 4 . Botnet 4 | . 4 . Fabricators . | . . . Repair Stations . | . . . Recycling Units . | . . . Scanalyzers . | . . . Garrison Access . | . . . Data Cores Recovered . | . . . Used . | . . . Hacking Detections 6 | . 5 1 Full Trace Events 2 | . 1 1 Feedback Events . | . . . Feedback Blocked . | . . . Robot Schematics Acquired . | . . . Robots Built . | . . . Authchips . | . . . Time . | . . . Total Robot Build Rating . | . . . Part Schematics Acquired . | . . . Parts Built . | . . . Authchips . | . . . Time . | . . . Total Part Build Rating . | . . . Parts Repaired . | . . . Time . | . . . Parts Recycled . | . . . Recycled Matter . | . . . Retrieved Matter . | . . . Retrieved Components 2 | . 2 . Parts Scanalyzed . | . . . Part Schematics Acquired . | . . . Parts Damaged . | . . . Bothacking | -11 -10 -9 ------------ Run | Yrd Mat Mat Used RIF Installer . | . . . Robots Hacked . | . . . Non-combat . | . . . Combat . | . . . Robot Hacks Applied . | . . . Relay Couplers Released . | . . . Fabnet Peak Effective % . | . . . Robots Rewired . | . . . Allies Hacked . | . . . Hacks Repelled . | . . . Allies | -11 -10 -9 -------- Run | Yrd Mat Mat Total Allies . | . . . Largest Group . | . . . Highest-Rated Group . | . . . Highest-Rated Ally . | . . . Total Orders . | . . . Ally Attacks . | . . . Total Damage . | . . . Kills . | . . . Allies Corrupted . | . . . Allies Melted . | . . . Intel | -11 -10 -9 ------- Run | Yrd Mat Mat Robot Analysis Total . | . . . Derelict Logs Recovered . | . . . Drone Launches . | . . . Drone Recoveries . | . . . Exploration | -11 -10 -9 ------------- Run | Yrd Mat Mat Turns Passed 628 | 49 428 151 Spaces Moved 678 | 38 531 109 Core 60 | 18 8 34 Treads . | . . . Legs . | . . . Wheels 251 | 20 231 . Hover . | . . . Flight 367 | . 292 75 Fastest Speed 37 | 50 37 37 Average Speed 65 | 103 62 69 Slowest Speed 150 | 150 150 150 Overloaded Moves . | . . . Propulsion Burnouts . | . . . Robots Hopped 1 | . 1 . Cave-ins Triggered . | . . . Exploration Rate (%) 30 | 4 68 18 Regions Visited 2 Branch Regions . Pre-discovered Areas . | . . . Known Exits Taken 1 | . 1 . Unknown Exits Taken 1 | 1 . . Scrap Searched . | . . . Spaces Dug . | . . . Terrain Destroyed 26 | . . 26 Melee . | . . . Projectile . | . . . AOE 26 | . . 26 Terrain Rammed . | . . . Walls Destroyed . | . . . Machines Disabled . | . . . Actions | -11 -10 -9 --------- Run | Yrd Mat Mat Total 781 | 45 582 154 Wait 30 | . 8 22 Move 674 | 37 528 109 Hop 1 | . 1 . Pick Up 10 | 3 6 1 Fast Attach 14 | 5 9 . Attach 4 | . 3 1 Detach . | . . . Swap 5 | . . 5 Drop 3 | . 3 . Fire 40 | . 24 16 Melee . | . . . Ram . | . . . Kick . | . . . Crush . | . . . Escape Stasis . | . . . Rewire . | . . . Trap . | . . . Miscellaneous . | . . . Route ------- -11/Scrapyard -10/Materials (discovered 5 exits: *Mat x3 / [*Min x2]) -9/Materials History --------- Turn | Location | Event 32 | -11/Scrapyard | Discovered new exit (range 16) 50 | -11/Scrapyard | Entered Materials 212 | -10/Materials | Identified exit to Materials 302 | -10/Materials | Build established: Mutant 315 | -10/Materials | Core integrity fell below 50% 359 | -10/Materials | Lost 6 parts (1p2n1u2w) 360 | -10/Materials | Discovered new exit (range 16) 397 | -10/Materials | Discovered new exit (range 15) 478 | -10/Materials | Entered another Materials area 478 | -9/Materials | Evolved 2 slots: Propulsion x1, Utility x1 586 | -9/Materials | Destroyed 7 combat bots 629 | -9/Materials | Self-destructed Last Messages --------------- local area. 00588_ U-05 Engineer builds a Wall. 00589_ The unstable cave ceiling collapses. 00593_ U-05 Engineer lays Concrete. 00596_ ALERT: Hostiles spotted, dispatching reinforcements to Terminal M009. 00596_ U-05 Engineer lays Concrete. 00601_ U-05 Engineer builds a Wall. 00602_ U-05 Engineer lays Concrete. 00604_ K-01 Serf collects debris. 00604_ U-05 Engineer lays Concrete. 00605_ U-05 Engineer builds a Wall. 00605_ U-05 Engineer lays Concrete. 00610_ U-05 Engineer builds a Wall. 00616_ Connecting with Terminal... 00616_ ALERT: Suspicious activity at Terminal M005. Dispatching Investigation squad. 00619_ U-05 Engineer builds a Wall. 00622_ K-01 Serf collects debris. 00622_ U-05 Engineer builds a Wall. Map ----- +----------------------------------------------------+ | ##???# #?????? #????????????????????????? | | ?????# #?????? +????????????????????????? | | ###### #?????? #????????????????????????? | | #?????# #????????????????????????? | | #?????? #????????????????????????? | | #?????? #????????????????????????? | | ######+#####??? #????????????????????????? | | ???# #### ????? "??????????????????? | | ???# """ ## ## #+####### "??????????????????? | | ???# "R" # # # ""?????????????????? | | ???# " " ##### ????????????????? | | ???# % ????????????????? | | ???#""" [ # % ????????????????? | | ???#""" # # ????????????????? | | ???#""" ### #########??????????????????? | | ???# ### ########???????????????????? | | ???##########?# # #???????????????????? | | ??????????????# ! x # """ #???????????????????? | | ?????????????## # "T" #???????????????????? | | ?????????????# # #???????????????????? | | ?????????????+ """ # #???????????????????? | | ?????????????# """ + #???????????????????? | | ?????????????# """ ########??????# ?????????? | | ?????????????# """ ########## #????????? | | ?????????????# """ k #????????? | | ?????????????#k @ k #????????? | | ?????????????# #??????????? | | ?????????????# ######### #??????????? | | ?????????????# ????????? #??????????? | | ?????????????# ?????????? #??????????? | | ?????????????# ???????????? #??????????? | | ???????????? ?????????????? #??????????? | | ??????????? ???????????????#gg #??????????? | | ?????????? ????????????????l k ???????????? | | ?????????? ??????????????????? w???????????? | | ????????????????????????????????? ????????????? | | ?????????????????????????????????? ????????????? | | ?????????????????????????????????? ??????????????? | | ?????????????????????????????????????????????????? | | ?????????????????????????????????????????????????? | | ?????????????????????????????????????????????????? | | ?????????????????????????????????????????????????? | | ?????????????????????????????????????????????????? | | ?????????????????????????????????????????????????? | | ?????????????????????????????????????????????????? | | ?????????????????????????????????????????????????? | | ?????????????????????????????????????????????????? | | ?????????????????????????????????????????????????? | | ?????????????????????????????????????????????????? | | ?????????????????????????????????????????????????? | +----------------------------------------------------+ Best States ------------- Heat Dissipation 28 Energy Generation 10 Energy Capacity 250 Matter Stores 300 Matter Capacity 300 Sight Range 16 Robot Scan Range 14 Terrain Scan Density 10 Evasion (%) 62 Offensive Hacking 10 Item Schematics ----------------- None Robot Schematics ------------------ None Fabricated ------------ Nothing Alien Tech Used ----------------- None Achievements -------------- Maximum Efficiency Quantum Hacking Challenges ------------ None Game ------ Seed DispersionMasterDesublimator Manual? 0 Play Time 00:15:59 Cumulative 8.4 hours Start 2024.04.16 @ 19:30:29 End 2024.04.16 @ 19:45:12 Sessions 1 Manual Loads 0 Difficulty Rogue Special Mode None Game No. 16 Rogue 16 Adventurer 0 Explorer 0 Win Type - Total 0 Types 0/0/0/0/0/0/0/0/0 Lore% 5 Gallery% 15 Achievement% 15 Wizard Run 0 Options --------- Layout 0 ASCII 0 Keyboard 0 Movement Numpad Keybinds 0 Fullscreen 1 Font 24/Smallcaps Map View 76x50 Zoom Use 0% Tactical HUD 1 Map Filters NONE Filters NONE Steam 1 RUN: 3ae99fe8-cad5-4ec5-9701-bd5bbb1321fe